Workbook

Sheet Sheet1
D1: Year | E1: Tax | K1: Tax Period | L1: Form | M1: Tax Due | N1: Filed | O1: Filing Status | P1: NFTL | Q1: CSED | R1: Assessed | S1: Filed | T1: ASED
D2: 2014 | E2: 16602 | K2: 2013/Q4 | L2: 941 | M2: 64774 | N2: Yes | Q2: 02/08/2027 | T2: =IF(S2="","",S2+1095) -> 
K3: 2014/Q2 | L3: 941 | M3: 23949 | N3: Yes | P3: Yes | Q3: 2026-04-20 | T3: =IF(S3="","",S3+1095) -> 
C4: Running Balance | D4: Payment/Credits | K4: 2014/Q3 | L4: 941 | M4: 23728 | N4: Yes | P4: Yes | Q4: 2026-04-20
D5: Date | E5: Amount | F5: From | K5: 2014/Q4 | L5: 941 | M5: 23507 | N5: Yes | P5: Yes | Q5: 2026-04-20
C6: =E2+E6 -> 19410.36 | D6: 2016-03-07 | E6: 2808.36 | F6: Late filing penalty | K6: 2015/Q1 | L6: 941 | M6: 24915 | N6: Yes | P6: Yes | Q6: 2026-04-20 | R6: ✔
C7: =C6+E7 -> 20268.47 | D7: 2016-03-07 | E7: 858.11 | F7: Late paying penalty | K7: 2015/Q2 | L7: 941 | M7: 23064 | N7: Yes | P7: Yes | Q7: 2026-04-20 | R7: ✔
C8: =C7+E7 -> 21126.58 | D8: 2016-03-07 | E8: 458.15 | F8: Interest | K8: 2015/Q3 | L8: 941 | M8: 26207 | N8: Yes | P8: Yes | Q8: 2026-04-27 | R8: ✔
C9: 21584.73 | D9: 2016-05-23 | E9: 8 | F9: Collection fees | K9: 2015/Q4 | L9: 941 | M9: 1755 | N9: Yes | P9: Yes | Q9: 2026-05-18
C10: 21592.73 | D10: 2019-11-04 | E10: 3601.32 | F10: Interest | K10: 2016 | L10: 940 | M10: 356 | N10: Yes | P10: Yes | Q10: 2028-02-07
C11: 25194.05 | D11: 2019-11-04 | E11: 3042.39 | F11: Late paying penalty | K11: 2016/Q2 | L11: 941 | M11: 20762 | N11: Yes | P11: Yes | Q11: 2028-03-06 | R11: ✔
C12: 28236.44 | D12: 2021-04-15 | E12: -9280 | F12: 2021 refund | K12: 2016/Q4 | L12: 941 | M12: 6835 | N12: Yes | P12: Yes | Q12: 2028-08-22
C13: 18956.44 | D13: 2021-11-08 | E13: 856 | F13: Interest | K13: 2016/Q4 | L13: CIVPEN | M13: 1040 | N13: No | O13: UNKNOWN | P13: Yes
C14: 19812.44 | D14: 2022-11-07 | E14: 1180.76 | F14: Interest | K14: 2017 | L14: 940 | M14: 2573 | N14: Yes | P14: Yes | Q14: 2030-07-15
C15: 20993.2 | D15: 2023-04-15 | E15: -8644 | F15: 2022 refund | K15: 2017/Q1 | L15: 941 | M15: 18565 | N15: Yes | P15: Yes | Q15: 2028-01-31 | R15: ✔
C16: 12349.2 | D16: 2023-11-06 | E16: 2132.07 | F16: Interest | K16: 2017/Q2 | L16: 941 | M16: 18687 | N16: Yes | P16: Yes | Q16: 2028-03-13 | R16: ✔
C17: 14481.27 | D17: 2024-02-16 | E17: -1907 | F17: Payment | K17: 2017/Q3 | L17: 941 | M17: 14974 | N17: Yes | P17: Yes | Q17: 2028-03-13 | R17: ✔
C18: 12574.27 | D18: 2024-03-15 | E18: -100 | F18: Payment | K18: 2018/Q3 | L18: 941 | M18: 17 | N18: Yes | Q18: 2029-03-11
C19: 12474.27 | D19: 2024-03-15 | E19: -1950 | F19: Payment | K19: 2019 | L19: 940 | M19: 2350 | N19: Yes | P19: Yes | Q19: 2032-07-13
C20: 10524.27 | D20: 2024-04-15 | E20: -1950 | F20: Payment | K20: 2019/Q2 | L20: 941 | M20: 1029 | N20: Yes | P20: Yes | Q20: 2030-03-05
C21: 8574.27 | D21: 2024-04-15 | E21: -6198.04 | F21: 2023 refund | K21: 2019/Q3 | L21: 941 | M21: 1037 | N21: Yes | P21: Yes | Q21: 2030-04-22
C22: 2376.23 | D22: 2024-04-24 | E22: -100 | F22: Payment | K22: 2019/Q4 | L22: 941 | M22: 962 | N22: Yes | P22: Yes | Q22: 2030-08-05
C23: 2276.23 | D23: 2024-05-24 | E23: -100 | F23: Payment | K23: 2019/Q4 | L23: CIVPEN | M23: 1080 | N23: No | O23: UNKNOWN | P23: Yes
C24: 2176.23 | D24: 2024-06-28 | E24: -100 | F24: Payment | K24: 2021/Q1 | L24: 941 | M24: 2530 | N24: Yes | P24: Yes | Q24: 2031-10-27 | S24: 2021-08-23 | T24: 2024-08-22
C25: 2076.23 | D25: 2024-07-29 | E25: -100 | F25: Payment | K25: 2021/Q2 | L25: 941 | M25: 455 | N25: Yes | P25: Yes | Q25: 2031-11-17
C26: 1976.23 | D26: 2024-08-28 | E26: -100 | F26: Payment | K26: 2021/Q3 | L26: 941 | M26: 5215 | N26: Yes | P26: Yes | Q26: 2032-04-20 | S26: 2022-02-14 | T26: 2025-02-13
C27: 1876.23 | D27: 2024-09-24 | E27: -100 | F27: Payment | K27: 2021/Q4 | L27: 941 | M27: 8378 | N27: Yes | P27: Yes | Q27: 2033-05-10 | S27: 2023-03-06 | T27: 2026-03-05
C28: 1776.23 | D28: Miscellaneous adjustments & removal of penalties brought this down to $0 | K28: 2022/Q1 | L28: 941 | M28: 22339 | N28: Yes | P28: Yes | Q28: 2033-06-21 | S28: 2023-04-17 | T28: 2026-04-16
C29: 0 | K29: 2022/Q2 | L29: 941 | M29: 30515 | N29: Yes | P29: Yes | Q29: 2033-06-28 | S29: 2023-04-24 | T29: 2026-04-23
K30: 2022/Q3 | L30: 941 | M30: 18646 | N30: Yes | P30: Yes | Q30: 2033-07-05
K31: 2022/Q4 | L31: 941 | M31: 12307 | N31: Yes | P31: Yes | Q31: 2033-05-10
K32: 2024/Q4 | L32: 941 | M32: -20376 | N32: No

Sheet Sheet2
D7: Personal | E7: 1600 | F7: 12 | G7: =E7*F7 -> 19200
D8: Business | E8: 1950 | F8: 12 | G8: =E8*F8 -> 23400
G9: =SUM(G7:G8) -> 42600 | H9: =120000/G9 -> 2.816901408
G10: =G9*(120000/G9) -> 120000
D12: Mortgage
D13: Amount | E13: 120000
D14: Interest Rate | E14: 0.075
D15: Term | E15: 10 Years
D16: Payment | E16: 1653.42 | F16: 12 | G16: =E16*F16 -> 19841.04
G17: =G16*10 -> 198410.4
D20: Amount | E20: 120000
D21: Interest Rate | E21: 0.075
D22: Term | E22: 5 years
D23: Payment | E23: 2579.55 | F23: 12 | G23: =E23*F23 -> 30954.6
G24: =G23*5 -> 154773
D27: Amount | E27: 120000
D28: Interest Rate | E28: 0
D29: Term | E29: 5
D30: Payment | E30: =E27/(E29*12) -> 2000 | F30: 12 | G30: =E30*F30 -> 24000
G31: =G30*E29 -> 120000
